Cogmind - Beta 13 @@@ ROGUE MODE // 2024.04.14 @ 16:42:42 Player: Calliope Result: Destroyed by G-34 Mercenary with Small Laser Performance ------------- Evolutions (0) 0 Regions Visited (2) 400 Robots Destroyed (14) 70 Value Destroyed (453) 453 Prototype IDs (0) 0 Alien Tech Used (0) 0 Bonus (0) 0 TOTAL SCORE: 923 Bonus ------- None Cogmind --------- Core Integrity 0/250 Matter 300/300 Energy 100/100 System Corruption 0% Temperature Cool (6) Movement Core (200) Ox3 Location -10/Mines Parts ------- > --- POWER (1) -------- (None) > --- PROPULSION (2) --- (None) > --- UTILITY (2) ------ Medium Storage Unit > --- WEAPON (2) ------- (None) > --- INVENTORY (10) --- Light Ion Engine Improved Heat Sink High-capacity Matter Pod (200) Terrain Scanner Peak State ------------ > --- POWER ------------ Light Nuclear Core > --- PROPULSION ------- Light Treads Light Treads > --- UTILITY ---------- Small Storage Unit Terrain Scanner > --- WEAPON ----------- Light Assault Rifle Grenade Launcher > --- INVENTORY -------- Ion Engine Light Ion Engine Aluminum Leg Aluminum Leg Small Laser Light Assault Rifle [Rating: 9] Favorites ----------- Power Light Nuclear Core Engine Light Ion Engine Power Core Light Nuclear Core Propulsion Light Treads Treads Light Treads Utility Terrain Scanner Device Terrain Scanner Storage Small Storage Unit Weapon Light Assault Rifle Energy Gun Particle Gun Ballistic Gun Light Assault Rifle Launcher Grenade Launcher Build | -11 -10 -10 ------- Run | Yrd Mat Min Slots Evolved . | . . . Power . | . . . Propulsion . | . . . Utility . | . . . Weapon . | . . . Parts Attached 20 | 6 7 7 Power 3 | 1 1 1 Engine 2 | 1 . 1 Core 1 | . 1 . Reactor . | . . . Propulsion 6 | 2 2 2 Treads 6 | 2 2 2 Leg . | . . . Wheel . | . . . Hover . | . . . Flight . | . . . Utility 5 | 1 2 2 Device 2 | . 1 1 Storage 3 | 1 1 1 Processor . | . . . Hackware . | . . . Protection . | . . . Artifact . | . . . Weapon 6 | 2 2 2 Energy Gun 1 | . . 1 Energy Cannon . | . . . Ballistic Gun 4 | 2 1 1 Ballistic Cannon . | . . . Launcher 1 | . 1 . Special Weapon . | . . . Impact Weapon . | . . . Slashing Weapon . | . . . Piercing Weapon . | . . . Special Melee Weapon . | . . . Unidentified Prototypes . | . . . Parts Lost 11 | . 1 10 Power 2 | . . 2 Propulsion 4 | . . 4 Utility 1 | . . 1 Weapon 4 | . 1 3 Highest Loss Streak 8 | . 1 8 To Critical Strikes . | . . . Average Slot Usage (%) 94 | . 99 82 Engine 5 | . 4 8 Core 7 | . 9 1 Treads 26 | . 27 23 Device 11 | . 13 7 Storage 14 | . 14 14 Ballistic Gun 22 | . 21 25 Launcher 4 | . 6 . Naked Turns . | . . . Heaviest Build 21 | 10 18 21 Greatest Support 40 | 40 40 40 Greatest Overweight (x) 3 | . . 3 Average Overweight (x) . | . . . Largest Inventory Capacity 10 | 8 10 10 Average Capacity 8 | 7 8 10 Most Carried 8 | 4 8 8 Average Carried 5 | 2 5 5 Final Capacity 10 | 8 10 10 Final Carried 5 | 4 5 4 Class Distribution -------------------- 100% | Mutant Dominant Class ---------------- Mutant | -10/Materials Mutant | -10/Mines Resources | -11 -10 -10 ----------- Run | Yrd Mat Min Matter Collected 783 | 208 350 225 Remotely . | . . . Salvage Created 448 | . 215 233 Parts 29 | . 16 13 Haulers Intercepted . | . . . Recyclers Shooed . | . . . Parts Field Recycled . | . . . Retrieved Matter . | . . . Parts Self-Destructed . | . . . Prevented . | . . . Kills | -11 -10 -10 ------- Run | Yrd Mat Min Combat Hostiles Destroyed 17 | . 6 11 Guns 14 | . 3 11 AOE 3 | . 3 . Classes Destroyed 5 | . 2 3 Builder 1 | . 1 . Swarmer 3 | . . 3 Grunt 9 | . 6 3 Demolisher 1 | . . 1 Assembled 4 | . . 4 Best Kill Streak 4 | . 3 4 Combat Bots Only 4 | . 3 4 Max Kills in Single Turn 2 | . 2 2 Gunslinging . | . . . Exploded 2 | . 2 . Melee . | . . . Uniques/NPCs Destroyed . | . . . Combat | -11 -10 -10 -------- Run | Yrd Mat Min Hostile Shots Fired 106 | . 18 88 Missed 26 | . 6 20 Damage Taken 1361 | . 209 1152 Core 255 | . 26 229 Absorbed by Shields . | . . . Regen/Repaired (Parts) 40 | . 40 . Core Remaining (%) 100 | 100 . . Volleys Fired 88 | . 38 50 Largest 2 | . 2 2 Hottest 85 | . 50 85 Shots Fired 155 | . 62 93 Gun 145 | . 52 93 Cannon . | . . . Launcher 10 | . 10 . Special . | . . . Kinetic 139 | . 52 87 Thermal 6 | . . 6 Explosive 10 | . 10 . Electromagnetic . | . . . Robot Hit Streak 12 | . 12 8 Robot Miss Streak 6 | . 6 6 Penetration Max . | . . . Secondary Targets 2 | . . 2 Max Gunslinging Chain 1 | . . 1 Shots Hit Robots 82 | . 31 51 Core Hits 44 | . 16 28 Critical Kills . | . . . Critical Parts Destroyed . | . . . Critical Strikes . | . . . Melee Attacks . | . . . Impact . | . . . Slashing . | . . . Piercing . | . . . Sneak Attacks . | . . . Combat Hostiles . | . . . Follow-up Attacks . | . . . Damage Inflicted 874 | . 424 450 Guns 679 | . 231 448 Cannons . | . . . Explosions 193 | . 193 . Melee . | . . . Ramming 2 | . . 2 Kinetic 653 | . 231 422 Thermal 26 | . . 26 Explosive 193 | . 193 . Electromagnetic . | . . . Impact . | . . . Slashing . | . . . Piercing . | . . . Highest Corruption . | . . . Average Corruption . | . . . Corruption Purged . | . . . Corruption Blocked . | . . . Overload Shots . | . . . Overflow Damage 8 | . 8 . Projectiles . | . . . Explosions 8 | . 8 . Melee . | . . . Knockbacks . | . . . Impact . | . . . Kinetic . | . . . Secondary . | . . . Self-Inflicted Damage 68 | . 67 1 Shots 3 | . 3 . Rammed 2 | . . 2 Targets Rammed 2 | . . 2 Kicked . | . . . Crushed . | . . . Highest Temperature 160 | . 40 160 Average Temperature 30 | . 10 48 Received Heat Transfer 293 | . 75 218 Siege Activations . | . . . Robots Corrupted . | . . . Combat Hostiles . | . . . Parts Fried . | . . . Impact Corruptions . | . . . Robots Melted . | . . . Combat Hostiles . | . . . Parts Melted . | . . . Heat Transferred 74 | . . 74 Parts Sabotaged . | . . . Parts Stolen . | . . . Parts Stripped . | . . . Power Chain Reactions . | . . . Alert | -11 -10 -10 ------- Run | Yrd Mat Min Peak Influence 167 | . 167 70 Initial 5 | . . 5 Average 52 | . 57 44 Maximum Alert Level . | . . . Low Security (%) 100 | 100 100 100 Level 1 . | . . . Level 2 . | . . . Level 3 . | . . . Level 4 . | . . . Level 5 . | . . . High Security . | . . . Max Security . | . . . Squads Dispatched 2 | . 2 . Investigation 1 | . 1 . Extermination . | . . . Reinforcement 1 | . 1 . Assault . | . . . Garrison . | . . . Intercept . | . . . Searches Triggered . | . . . Construction Impeded . | . . . Haulers Reinforced . | . . . Active Scanning Responses . | . . . Cargo Convoy Interrupts . | . . . Stealth | -11 -10 -10 --------- Run | Yrd Mat Min Distress Signals 1 | . 1 . Communications Jammed . | . . . Distress Signals . | . . . Times Spotted 29 | . 15 14 Peak Tracking Total 4 | . 2 4 Tactical Retreats . | . . . Traps | -11 -10 -10 ------- Run | Yrd Mat Min Traps Triggered 1 | . 1 . Indirectly . | . . . Trap Hack Attempts . | . . . Triggered . | . . . Disarmed . | . . . Reprogrammed . | . . . Reused . | . . . Traps Extracted . | . . . Installed . | . . . Triggered . | . . . Machines | -11 -10 -10 ---------- Run | Yrd Mat Min Machines Disabled 2 | . 2 . Max in Single Turn 1 | . 1 . Machines Repaired . | . . . Machines Dismantled . | . . . Machines Sabotaged . | . . . Overloaded Fab Kills . | . . . Hacking | -11 -10 -10 --------- Run | Yrd Mat Min Machines Accessed 6 | . 6 . Terminals 3 | . 3 . Fabricators . | . . . Repair Stations 1 | . 1 . Recycling Units 2 | . 2 . Scanalyzers . | . . . Garrison Access . | . . . Total Hacks 16 | . 16 . Successful 9 | . 9 . Failed 7 | . 7 . Catastrophic . | . . . Database Lockouts . | . . . Manual 13 | . 13 . Terminals 10 | . 10 . Fabricators . | . . . Repair Stations 3 | . 3 . Recycling Units 3 | . 3 . Scanalyzers . | . . . Garrison Access . | . . . Terminal Hacks 2 | . 2 . Zone Layout 2 | . 2 . Fabricator Hacks . | . . . Repair Station Hacks 2 | . 2 . Scan Component 1 | . 1 . Repair 1 | . 1 . Recycling Unit Hacks 1 | . 1 . Report Inventory 1 | . 1 . Scanalyzer . | . . . Garrison Access Hacks . | . . . Unauthorized Hacks 3 | . 3 . Terminals 1 | . 1 . Botnet 1 | . 1 . Fabricators . | . . . Repair Stations . | . . . Recycling Units 2 | . 2 . Reject 2 | . 2 . Scanalyzers . | . . . Garrison Access . | . . . Data Cores Recovered . | . . . Used . | . . . Hacking Detections 5 | . 5 . Full Trace Events 1 | . 1 . Feedback Events . | . . . Feedback Blocked . | . . . Robot Schematics Acquired . | . . . Robots Built . | . . . Authchips . | . . . Time . | . . . Total Robot Build Rating . | . . . Part Schematics Acquired . | . . . Parts Built . | . . . Authchips . | . . . Time . | . . . Total Part Build Rating . | . . . Parts Repaired 1 | . 1 . Time 26 | . 26 . Parts Recycled . | . . . Recycled Matter . | . . . Retrieved Matter . | . . . Retrieved Components . | . . . Parts Scanalyzed . | . . . Part Schematics Acquired . | . . . Parts Damaged . | . . . Bothacking | -11 -10 -10 ------------ Run | Yrd Mat Min Used RIF Installer . | . . . Robots Hacked . | . . . Non-combat . | . . . Combat . | . . . Robot Hacks Applied . | . . . Relay Couplers Released . | . . . Fabnet Peak Effective % . | . . . Robots Rewired . | . . . Allies Hacked . | . . . Hacks Repelled . | . . . Allies | -11 -10 -10 -------- Run | Yrd Mat Min Total Allies . | . . . Largest Group . | . . . Highest-Rated Group . | . . . Highest-Rated Ally . | . . . Total Orders . | . . . Ally Attacks . | . . . Total Damage . | . . . Kills . | . . . Allies Corrupted . | . . . Allies Melted . | . . . Intel | -11 -10 -10 ------- Run | Yrd Mat Min Robot Analysis Total . | . . . Derelict Logs Recovered . | . . . Drone Launches . | . . . Drone Recoveries . | . . . Exploration | -11 -10 -10 ------------- Run | Yrd Mat Min Turns Passed 2449 | 80 1729 640 Spaces Moved 1063 | 46 745 272 Core 9 | 5 . 4 Treads 1054 | 41 745 268 Legs . | . . . Wheels . | . . . Hover . | . . . Flight . | . . . Fastest Speed 50 | 50 160 160 Average Speed 159 | 148 160 160 Slowest Speed 200 | 160 160 200 Overloaded Moves . | . . . Propulsion Burnouts . | . . . Robots Hopped . | . . . Cave-ins Triggered . | . . . Exploration Rate (%) 44 | 4 91 39 Regions Visited 2 Branch Regions 1 Pre-discovered Areas . | . . . Known Exits Taken . | . . . Unknown Exits Taken 2 | 1 1 . Scrap Searched . | . . . Spaces Dug . | . . . Terrain Destroyed 52 | . 52 . Melee . | . . . Projectile . | . . . AOE 52 | . 52 . Terrain Rammed . | . . . Walls Destroyed . | . . . Machines Disabled . | . . . Actions | -11 -10 -10 --------- Run | Yrd Mat Min Total 1685 | 55 1232 398 Wait 488 | . 426 62 Move 1061 | 45 744 272 Hop . | . . . Pick Up 15 | 4 8 3 Fast Attach 8 | 6 2 . Attach 7 | . 1 6 Detach 2 | . . 2 Swap 5 | . 4 1 Drop 9 | . 9 . Fire 88 | . 38 50 Melee . | . . . Ram 2 | . . 2 Kick . | . . . Crush . | . . . Escape Stasis . | . . . Rewire . | . . . Trap . | . . . Miscellaneous . | . . . Route ------- -11/Scrapyard -10/Materials (discovered 6 exits: [*Mat x3] / [*Min x2] / [*Sub]) -10/Mines History --------- Turn | Location | Event 20 | -11/Scrapyard | Discovered new exit (range 15) 81 | -11/Scrapyard | Entered Materials 244 | -10/Materials | Discovered new exit (range 15) 246 | -10/Materials | Discovered new exit (range 20) 318 | -10/Materials | Build established: Mutant 1144 | -10/Materials | Discovered new exit (range 16) 1240 | -10/Materials | Repaired Lgt. Treads 1333 | -10/Materials | Discovered new exit (range 5) 1583 | -10/Materials | Discovered new exit (range 14) 1724 | -10/Materials | Discovered new exit (range 8) 1810 | -10/Materials | Entered Mines 1811 | -10/Mines | Assembled infested the area 1816 | -10/Mines | Assisted by a Guerilla fighting off Assembled 2384 | -10/Mines | Core integrity fell below 50% 2418 | -10/Mines | Core integrity fell below 20% 2450 | -10/Mines | Lost 8 parts (1p3n1u3w) 2450 | -10/Mines | Destroyed by G-34 Mercenary with Small Laser Last Messages --------------- 02410_ The unstable cave ceiling collapses. 02412_ G-47 Trooper destroyed. 02413_ The unstable cave ceiling collapses. 02413_ Lgt. Treads destroyed. 02414_ U-05 Engineer builds a Wall. 02416_ The unstable cave ceiling collapses. 02418_ U-05 Engineer lays Concrete. 02419_ U-05 Engineer builds a Wall. 02419_ Lgt. Assault Rifle destroyed. 02419_ Slammed into G-34 Mercenary. 02420_ The unstable cave ceiling collapses. 02421_ Slammed into G-34 Mercenary. 02425_ The unstable cave ceiling collapses. 02425_ Acquired 18 matter. 02426_ U-05 Engineer builds a Wall. 02429_ The unstable cave ceiling collapses. 02429_ U-05 Engineer lays Concrete. 02430_ U-05 Engineer builds a Wall. 02432_ The unstable cave ceiling collapses. 02437_ U-05 Engineer builds a Wall. Map ----- +----------------------------------------------------+ | ??????????????????????## #### #### ## | | ??????????????????????## ### ## ### | | ??????????????????????### ## #### | | ??????????????????????##### ### ## | | ???????????????????????#### ### | | ?????????????????????????## #### ## | | ?????????????????????????## ##### ### | | ?????????????????????????## ##### ### ###### | | ??????????????????######?## ##### ### ####### | | ?????????????????########## ##### #### ####??? | | ????????????????#### ##### ### # ##### ###### | | ???????????????#### #### #### ###### ##### | | ???????????????### #### ### ##?### ## | | ???????????????## ## ##??### # | | ??????????????### ! ##??#### | | ??????????????## ########???##### | | ??????????????###### ## # # ##????##### | | ??????????????####### < #### ##??????### | | ??????????????????### ## #########???????### | | ??????????????????# # g# ####?####???????#### | | ??????????????????## ## ########????????#### | | ??????????????????### ## ##????????### | | ???????????????????## ## # ##??????????? | | ???????????????????## #%## """ ##??????????? | | ???????????????????# # # " #???????????? | | ???????????????????## #@# " ???????????? | | ????????????????????## #r#%# ##??????????? | | ?????????????????????### % ##??????????? | | ?????????????????????? ## ##??????????? | | ??????????????????????? #?#?## #####??????????? | | ??????????????????????? ###??????#####??????????? | | ??????????????????????? ###?????????????????????? | | ??????????????????????# ????????????????????????? | | ??????????????????????# ????????????????????????? | | ??????????????????????# ????????????????????????? | | ?????????????????????? ????????????????????????? | | ?????????????????????? ????????????????????????? | | ?????????????????????? ????????????????????????? | | ?????????????????????? ?????????????????????????? | | ??????????????????????#?????????????????????????? | | ????????????????????????????????????????????????? | | ????????????????????????????????????????????????? | | ????????????????????????????????????????????????? | | ????????????????????????????????????????????????? | | ????????????????????????????????????????????????? | | ????????????????????????????????????????????????? | | ????????????????????????????????????????????????? | | ????????????????????????????????????????????????? | | ????????????????????????????????????????????????? | | ????????????????????????????????????????????????? | +----------------------------------------------------+ Best States ------------- Heat Dissipation 25 Energy Generation 14 Energy Capacity 250 Matter Stores 484 Matter Capacity 500 Sight Range 16 Terrain Scan Range 14 Terrain Scan Density 10 Evasion (%) 40 Recoil Reduction 2 Item Schematics ----------------- None Robot Schematics ------------------ None Fabricated ------------ Nothing Alien Tech Used ----------------- None Achievements -------------- None Challenges ------------ None Game ------ Seed TiamatBiocellDevice Manual? 0 Play Time 00:14:26 Cumulative 12.6 hours Start 2024.04.14 @ 16:28:39 End 2024.04.14 @ 16:42:42 Sessions 1 Manual Loads 0 Difficulty Rogue Special Mode None Game No. 25 Rogue 23 Adventurer 0 Explorer 2 Win Type - Total 0 Types 0/0/0/0/0/0/0/0/0 Lore% 7 Gallery% 15 Achievement% 19 Wizard Run 0 Options --------- Layout 2 ASCII 0 Keyboard 1 Movement Vi Keybinds 0 Fullscreen 2 Font 32/SmallcapsGlow Map View 50x44 Zoom Use 0% Tactical HUD 1 Map Filters NONE Filters NONE Steam 1 RUN: 86298161-ffdd-49d1-9e79-b13d5898dac8